fUST/lending_fUST_20260509
["ID","MTS","AMOUNT","RATE_DAILY","PERIOD"]
[421888075,1778293839000,-343.76270999,0.00014638,2]
[421888076,1778293839000,-309.20173794,0.00014638,2]
[421888077,1778293839000,-202.19736808,0.00014638,2]
[421888078,1778293839000,-500.0,0.00014638,2]
[421888079,1778293839000,-160.0,0.000147,3]
[421888081,1778293839000,-5403.80242042,0.00014749,2]
[421888085,1778293839000,-21645.0,0.000148,4]
[421888070,1778293839000,-500.0,0.00014638,2]
[421888083,1778293839000,-286.42414682,0.00014799,2]
[421888084,1778293839000,-279.43008687,0.00014799,2]
[421888080,1778293839000,-179.85227617,0.000147,5]
[421888088,1778293839000,-500.0,0.00014811,2]
[421888086,1778293839000,-159.91066234,0.00014809,2]
[421888089,1778293839000,-239.39818917,0.0001491,2]
[421888090,1778293839000,-216.65863584,0.00014911,2]
[421888087,1778293839000,-500.0,0.00014811,2]
[421888091,1778293839000,-854.02,0.00014911,2]
[421888094,1778293839000,-500.0,0.00014911,2]
[421888092,1778293839000,-500.0,0.00014911,2]
[421888097,1778293839000,-196.45494611,0.00014912,2]
[421888093,1778293839000,-500.0,0.00014911,2]
[421888030,1778293839000,-502.23018213,0.00014364,2]
[421888096,1778293839000,-500.0,0.00014912,2]
[421888082,1778293839000,-500.0,0.00014799,2]
[421888068,1778293839000,-500.0,0.00014638,2]
[421888095,1778293839000,-500.0,0.00014912,2]
[421888063,1778293839000,-500.0,0.00014637,2]
[421888065,1778293839000,-611.06216493,0.00014638,2]
[421888033,1778293839000,-500.0,0.00014364,2]
[421888037,1778293839000,-305.18368674,0.00014411,3]
[421888034,1778293839000,-503.27450911,0.00014365,2]
[421888036,1778293839000,-4907.89214803,0.00014366,2]
[421888039,1778293839000,-1321.1770562,0.00014424,2]
[421888042,1778293839000,-500.0,0.00014436,2]
[421888044,1778293839000,-319.0,0.000145,2]
[421888041,1778293839000,-2574.2061456,0.00014424,2]
[421888040,1778293839000,-5299.1818558,0.00014424,2]
[421888038,1778293839000,-167.73,0.00014416,2]
[421888043,1778293839000,-500.0,0.00014437,2]
[421888045,1778293839000,-500.0,0.00014537,2]
[421888046,1778293839000,-415.91291149,0.00014537,2]
[421888047,1778293839000,-500.0,0.00014537,2]
[421888032,1778293839000,-501.67367725,0.00014364,2]
[421888049,1778293839000,-248.2677463,0.00014548,2]
[421888048,1778293839000,-1561.0,0.0001454,2]
[421888060,1778293839000,-854.02,0.00014637,2]
[421888062,1778293839000,-500.0,0.00014637,2]
[421888061,1778293839000,-500.0,0.00014637,2]
[421888059,1778293839000,-562.98738273,0.00014637,2]
[421888058,1778293839000,-559.52644293,0.00014637,2]
[421888055,1778293839000,-504.8621765,0.00014635,2]
[421888064,1778293839000,-296.32061466,0.00014637,2]
[421888056,1778293839000,-500.0,0.00014636,2]
[421888054,1778293839000,-501.23021692,0.00014635,2]
[421888053,1778293839000,-501.43579609,0.00014635,2]
[421888052,1778293839000,-500.82136171,0.00014635,2]
[421888051,1778293839000,-500.0,0.00014635,2]
[421888057,1778293839000,-500.0,0.00014637,2]
[421888050,1778293839000,-184.2,0.00014592,2]
[421888145,1778293840000,-823.0,0.0001572,2]
[421888144,1778293840000,-823.0,0.0001572,2]
[421888142,1778293840000,-151.0,0.000157,2]
[421888143,1778293840000,-7365.29358804,0.00015705,2]
[421888140,1778293840000,-823.0,0.00015635,2]
[421888138,1778293840000,-6997.64429478,0.00015514,2]
[421888139,1778293840000,-487.84258022,0.00015633,2]
[421888136,1778293840000,-500.0,0.000155,2]
[421888134,1778293840000,-500.0,0.0001546,2]
[421888132,1778293840000,-500.0,0.0001546,2]
[421888146,1778293840000,-854.02,0.00015733,2]
[421888137,1778293840000,-151.0,0.00015509,2]
[421888131,1778293840000,-500.0,0.00015459,2]
[421888153,1778293840000,-255.885228,0.00015876,2]
[421888147,1778293840000,-500.0,0.00015733,2]
[421888150,1778293840000,-500.0,0.00015734,2]
[421888149,1778293840000,-500.0,0.00015733,2]
[421888151,1778293840000,-500.0,0.00015734,2]
[421888148,1778293840000,-500.0,0.00015733,2]
[421888152,1778293840000,-1602.42788632,0.00015874,2]
[421888154,1778293840000,-379.470003,0.00015876,7]
[421888158,1778293840000,-600.0,0.00015946,2]
[421888155,1778293840000,-151.0,0.000159,2]
[421888157,1778293840000,-203.36194375,0.00015914,2]
[421888156,1778293840000,-200.0,0.00015914,2]
[421888159,1778293840000,-500.0,0.00016,7]
[421888162,1778293840000,-151.0,0.00016,2]
[421888127,1778293840000,-1350.7809216,0.00015418,2]
[421888141,1778293840000,-1561.0,0.00015636,2]
[421888128,1778293840000,-854.02,0.00015459,2]
[421888113,1778293840000,-500.0,0.00015185,2]
[421888130,1778293840000,-500.0,0.00015459,2]
[421888098,1778293840000,-168.1229184,0.00014912,2]
[421888099,1778293840000,-500.0,0.00014912,2]
[421888101,1778293840000,-500.0,0.00014912,2]
[421888100,1778293840000,-500.0,0.00014912,2]
[421888102,1778293840000,-167.665764,0.00015068,2]
[421888103,1778293840000,-1602.42788632,0.00015069,2]
[421888104,1778293840000,-500.0,0.00015085,2]
[421888105,1778293840000,-500.0,0.00015085,2]
[421888106,1778293840000,-1561.0,0.00015088,2]
[421888108,1778293840000,-185.0,0.00015151,2]
[421888109,1778293840000,-444.25,0.00015151,2]
[421888112,1778293840000,-500.0,0.00015185,2]
[421888107,1778293840000,-6200.62648622,0.00015131,2]
[421888129,1778293840000,-500.0,0.00015459,2]
[421888110,1778293840000,-823.0,0.00015158,2]
[421888115,1778293840000,-500.0,0.00015186,2]
[421888116,1778293840000,-500.0,0.00015186,2]
[421888117,1778293840000,-500.0,0.00015186,2]
[421888119,1778293840000,-225.75716623,0.00015186,2]
[421888114,1778293840000,-500.0,0.00015185,2]
[421888118,1778293840000,-182.25096424,0.00015186,2]
[421888121,1778293840000,-189.72875743,0.00015188,2]
[421888125,1778293840000,-2381.57212675,0.00015366,2]
[421888120,1778293840000,-329.737,0.00015188,2]
[421888124,1778293840000,-595.98902071,0.00015366,2]
[421888123,1778293840000,-500.0,0.00015359,2]
[421888122,1778293840000,-183.36280252,0.00015359,2]
[421888126,1778293840000,-24593.9110766,0.00015418,2]
[421888111,1778293840000,-854.02,0.00015185,2]
[421888161,1778293840000,-245.96,0.00016,7]
[421888164,1778293840000,-500.0,0.00016007,2]
[421888160,1778293840000,-500.0,0.00016,7]
[421888199,1778293840000,-860.98493936,0.00016199,2]
[421888196,1778293840000,-860.98493936,0.00016199,2]
[421888198,1778293840000,-860.98493936,0.00016199,2]
[421888201,1778293840000,-860.98493936,0.00016199,2]
[421888203,1778293840000,-860.98493936,0.00016199,2]
[421888202,1778293840000,-860.98493936,0.00016199,2]
[421888204,1778293840000,-860.98493936,0.00016199,2]
[421888205,1778293840000,-860.98493936,0.00016199,2]
[421888206,1778293840000,-860.98493936,0.00016199,2]
[421888207,1778293840000,-860.98493936,0.00016199,2]
[421888208,1778293840000,-860.98493936,0.00016199,2]
[421888210,1778293840000,-860.98493936,0.00016199,2]
[421888212,1778293840000,-892.2934826,0.00016199,2]
[421888200,1778293840000,-860.98493936,0.00016199,2]
[421888214,1778293840000,-892.2934826,0.00016199,2]
[421888213,1778293840000,-892.2934826,0.00016199,2]
[421888215,1778293840000,-892.2934826,0.00016199,2]
[421888218,1778293840000,-892.2934826,0.00016199,2]
[421888217,1778293840000,-892.2934826,0.00016199,2]
[421888219,1778293840000,-1579.68994323,0.00016199,2]
[421888220,1778293840000,-648.51991906,0.000162,2]
[421888221,1778293840000,-1001.12,0.000162,3]
[421888222,1778293840000,-100000.0,0.000162,2]
[421888223,1778293840000,-151.0,0.000162,2]
[421888224,1778293840000,-9822.69502806,0.00016279,2]
[421888225,1778293840000,-854.02,0.00016281,2]
[421888226,1778293840000,-500.0,0.00016281,2]
[421888163,1778293840000,-854.02,0.00016007,2]
[421888211,1778293840000,-860.98493936,0.00016199,2]
[421888197,1778293840000,-860.98493936,0.00016199,2]
[421888216,1778293840000,-892.2934826,0.00016199,2]
[421888194,1778293840000,-263.18044598,0.00016199,2]
[421888195,1778293840000,-860.98493936,0.00016199,2]
[421888166,1778293840000,-500.0,0.00016007,2]
[421888167,1778293840000,-500.0,0.00016008,2]
[421888169,1778293840000,-174.0,0.00016055,3]
[421888170,1778293840000,-9298.49351053,0.00016088,2]
[421888171,1778293840000,-525.73091836,0.0001615,30]
[421888172,1778293840000,-500.0,0.00016173,2]
[421888168,1778293840000,-500.0,0.00016008,2]
[421888173,1778293840000,-500.0,0.00016173,2]
[421888177,1778293840000,-500.0,0.00016173,2]
[421888175,1778293840000,-500.0,0.00016173,2]
[421888176,1778293840000,-500.0,0.00016173,2]
[421888174,1778293840000,-500.0,0.00016173,2]
[421888179,1778293840000,-500.17814201,0.00016173,2]
[421888178,1778293840000,-500.16655796,0.00016173,2]
[421888165,1778293840000,-500.0,0.00016007,2]
[421888191,1778293840000,-156.477,0.00016198,2]
[421888192,1778293840000,-860.98493936,0.00016199,2]
[421888189,1778293840000,-2692.67864884,0.00016175,2]
[421888193,1778293840000,-860.98493936,0.00016199,2]
[421888180,1778293840000,-500.0,0.00016173,2]
[421888187,1778293840000,-673.84350572,0.00016175,2]
[421888188,1778293840000,-7854.16192224,0.00016175,2]
[421888190,1778293840000,-1561.0,0.00016184,2]
[421888186,1778293840000,-5031.69532556,0.00016175,2]
[421888185,1778293840000,-2830.32862063,0.00016175,2]
[421888183,1778293840000,-314.48095785,0.00016175,2]
[421888181,1778293840000,-500.18853031,0.00016173,2]
[421888182,1778293840000,-500.22375017,0.00016173,2]
[421888184,1778293840000,-1257.92383139,0.00016175,2]
[421888268,1778293841000,-371.82276,0.00016438,2]
[421888269,1778293841000,-371.82276,0.00016438,2]
[421888267,1778293841000,-371.82276,0.00016438,2]
[421888266,1778293841000,-354.43491,0.00016438,2]
[421888265,1778293841000,-354.434911,0.00016438,2]
[421888257,1778293841000,-354.434911,0.00016438,2]
[421888261,1778293841000,-354.434911,0.00016438,2]
[421888262,1778293841000,-354.434911,0.00016438,2]
[421888263,1778293841000,-354.434911,0.00016438,2]
[421888264,1778293841000,-354.434911,0.00016438,2]
[421888259,1778293841000,-354.434911,0.00016438,2]
[421888271,1778293841000,-371.82276,0.00016438,2]
[421888260,1778293841000,-354.434911,0.00016438,2]
[421888270,1778293841000,-371.82276,0.00016438,2]
[421888280,1778293841000,-371.82276,0.00016438,2]
[421888273,1778293841000,-371.82276,0.00016438,2]
[421888277,1778293841000,-371.82276,0.00016438,2]
[421888274,1778293841000,-371.82276,0.00016438,2]
[421888275,1778293841000,-371.82276,0.00016438,2]
[421888276,1778293841000,-371.82276,0.00016438,2]
[421888278,1778293841000,-371.82276,0.00016438,2]
[421888281,1778293841000,-371.82276,0.00016438,2]
[421888282,1778293841000,-371.82276,0.00016438,2]
[421888279,1778293841000,-371.82276,0.00016438,2]
[421888283,1778293841000,-371.82276,0.00016438,2]
[421888284,1778293841000,-371.82276,0.00016438,2]
[421888286,1778293841000,-371.822759,0.00016438,2]
[421888285,1778293841000,-371.82276,0.00016438,2]
[421888272,1778293841000,-371.82276,0.00016438,2]
[421888256,1778293841000,-354.434911,0.00016438,2]
[421888227,1778293841000,-500.0,0.00016281,2]
[421888254,1778293841000,-354.434911,0.00016438,2]
[421888228,1778293841000,-331.02412133,0.00016281,2]
[421888229,1778293841000,-500.0,0.00016282,2]
[421888231,1778293841000,-151.0,0.000163,2]
[421888230,1778293841000,-500.0,0.00016282,2]
[421888235,1778293841000,-911.77,0.00016438,2]
[421888233,1778293841000,-150.1717904,0.00016417,7]
[421888232,1778293841000,-823.0,0.00016322,2]
[421888234,1778293841000,-1093.44071459,0.00016438,2]
[421888236,1778293841000,-181.51989881,0.00016438,2]
[421888238,1778293841000,-151.0,0.00016438,2]
[421888237,1778293841000,-151.0,0.00016438,2]
[421888239,1778293841000,-151.0,0.00016438,2]
[421888240,1778293841000,-151.0,0.00016438,2]
[421888258,1778293841000,-354.434911,0.00016438,2]
[421888241,1778293841000,-151.0,0.00016438,2]
[421888244,1778293841000,-152.11397416,0.00016438,2]
[421888243,1778293841000,-151.0,0.00016438,2]
[421888245,1778293841000,-151.0,0.00016438,2]
[421888246,1778293841000,-214.629217,0.00016438,2]
[421888248,1778293841000,-354.434911,0.00016438,2]
[421888247,1778293841000,-354.434911,0.00016438,2]
[421888249,1778293841000,-354.434911,0.00016438,2]
[421888253,1778293841000,-354.434911,0.00016438,2]
[421888250,1778293841000,-354.434911,0.00016438,2]
[421888288,1778293841000,-323.693276,0.00016438,2]
[421888255,1778293841000,-354.434911,0.00016438,2]
[421888252,1778293841000,-354.434911,0.00016438,2]
[421888251,1778293841000,-354.434911,0.00016438,2]
[421888242,1778293841000,-151.0,0.00016438,2]
[421888287,1778293841000,-323.693276,0.00016438,2]
[421888324,1778293841000,-181.56266,0.00016438,2]
[421888289,1778293841000,-323.693276,0.00016438,2]
[421888323,1778293841000,-181.56266,0.00016438,2]
[421888327,1778293841000,-220.522273,0.00016438,2]
[421888328,1778293841000,-220.522273,0.00016438,2]
[421888325,1778293841000,-181.56266,0.00016438,2]
[421888326,1778293841000,-181.562664,0.00016438,2]
[421888329,1778293841000,-220.522273,0.00016438,2]
[421888331,1778293841000,-220.522273,0.00016438,2]
[421888332,1778293841000,-220.522273,0.00016438,2]
[421888330,1778293841000,-220.522273,0.00016438,2]
[421888333,1778293841000,-220.522273,0.00016438,2]
[421888334,1778293841000,-220.522273,0.00016438,2]
[421888335,1778293841000,-220.522273,0.00016438,2]
[421888336,1778293841000,-220.522273,0.00016438,2]
[421888317,1778293841000,-181.56266,0.00016438,2]
[421888337,1778293841000,-220.522273,0.00016438,2]
[421888341,1778293841000,-220.522273,0.00016438,2]
[421888340,1778293841000,-220.522273,0.00016438,2]
[421888342,1778293841000,-220.522273,0.00016438,2]
[421888344,1778293841000,-220.522273,0.00016438,2]
[421888343,1778293841000,-220.522273,0.00016438,2]
[421888345,1778293841000,-220.522273,0.00016438,2]
[421888346,1778293841000,-220.522264,0.00016438,2]
[421888347,1778293841000,-249.045866,0.00016438,2]
[421888349,1778293841000,-249.045866,0.00016438,2]
[421888348,1778293841000,-151.0,0.00016438,2]
[421888351,1778293841000,-249.045866,0.00016438,2]
[421888350,1778293841000,-151.0,0.00016438,2]
[421888290,1778293841000,-323.693276,0.00016438,2]
[421888339,1778293841000,-220.522273,0.00016438,2]
[421888318,1778293841000,-181.56266,0.00016438,2]
[421888338,1778293841000,-220.522273,0.00016438,2]
[421888319,1778293841000,-181.56266,0.00016438,2]
[421888322,1778293841000,-181.56266,0.00016438,2]
[421888294,1778293841000,-323.693276,0.00016438,2]
[421888292,1778293841000,-323.693276,0.00016438,2]
[421888296,1778293841000,-323.693276,0.00016438,2]
[421888293,1778293841000,-323.693276,0.00016438,2]
[421888295,1778293841000,-323.693276,0.00016438,2]
[421888297,1778293841000,-323.693276,0.00016438,2]
[421888298,1778293841000,-323.693276,0.00016438,2]
[421888302,1778293841000,-323.693276,0.00016438,2]
[421888300,1778293841000,-323.693276,0.00016438,2]
[421888303,1778293841000,-323.693276,0.00016438,2]
[421888299,1778293841000,-323.693276,0.00016438,2]
[421888304,1778293841000,-323.693276,0.00016438,2]
[421888291,1778293841000,-323.693276,0.00016438,2]
[421888301,1778293841000,-323.693276,0.00016438,2]
[421888306,1778293841000,-323.693268,0.00016438,2]
[421888305,1778293841000,-323.693276,0.00016438,2]
[421888320,1778293841000,-181.56266,0.00016438,2]
[421888316,1778293841000,-181.56266,0.00016438,2]
[421888315,1778293841000,-181.56266,0.00016438,2]
[421888312,1778293841000,-181.56266,0.00016438,2]
[421888313,1778293841000,-181.56266,0.00016438,2]
[421888314,1778293841000,-181.56266,0.00016438,2]
[421888321,1778293841000,-181.56266,0.00016438,2]
[421888310,1778293841000,-181.56266,0.00016438,2]
[421888307,1778293841000,-181.56266,0.00016438,2]
[421888309,1778293841000,-181.56266,0.00016438,2]
[421888308,1778293841000,-181.56266,0.00016438,2]
[421888311,1778293841000,-181.56266,0.00016438,2]
[421888392,1778293842000,-155.46857554,0.00016563,2]
[421888396,1778293842000,-172.486365,0.0001667,7]
[421888393,1778293842000,-831.0,0.00016605,2]
[421888394,1778293842000,-548.34037683,0.0001666,2]
[421888390,1778293842000,-500.0,0.00016556,2]
[421888382,1778293842000,-201.920393,0.00016438,2]
[421888389,1778293842000,-500.0,0.00016556,2]
[421888385,1778293842000,-286.13909743,0.00016548,2]
[421888387,1778293842000,-500.0,0.00016555,2]
[421888388,1778293842000,-176.0196442,0.00016555,2]
[421888397,1778293842000,-1602.42788632,0.00016679,2]
[421888391,1778293842000,-310.93715109,0.00016563,2]
[421888395,1778293842000,-12280.09646807,0.00016662,6]
[421888411,1778293842000,-528.51167666,0.00016829,2]
[421888401,1778293842000,-1000.0,0.00016721,2]
[421888399,1778293842000,-1000.0,0.00016721,2]
[421888400,1778293842000,-1000.0,0.00016721,2]
[421888402,1778293842000,-1000.0,0.00016721,2]
[421888403,1778293842000,-1000.0,0.00016721,2]
[421888405,1778293842000,-1000.0,0.00016721,2]
[421888404,1778293842000,-1000.0,0.00016721,2]
[421888406,1778293842000,-1638.25,0.00016732,2]
[421888407,1778293842000,-310.93715109,0.00016762,7]
[421888409,1778293842000,-159.91066233,0.000168,2]
[421888408,1778293842000,-151.0,0.000168,2]
[421888384,1778293842000,-151.0,0.000165,2]
[421888410,1778293842000,-854.02,0.00016829,2]
[421888398,1778293842000,-151.0,0.000167,2]
[421888383,1778293842000,-10900.11889976,0.0001647,4]
[421888367,1778293842000,-249.045866,0.00016438,2]
[421888381,1778293842000,-151.0,0.00016438,2]
[421888355,1778293842000,-151.0,0.00016438,2]
[421888353,1778293842000,-151.0,0.00016438,2]
[421888352,1778293842000,-151.0,0.00016438,2]
[421888354,1778293842000,-249.045866,0.00016438,2]
[421888356,1778293842000,-249.045866,0.00016438,2]
[421888357,1778293842000,-151.0,0.00016438,2]
[421888361,1778293842000,-151.0,0.00016438,2]
[421888358,1778293842000,-249.045866,0.00016438,2]
[421888362,1778293842000,-249.045866,0.00016438,2]
[421888359,1778293842000,-151.0,0.00016438,2]
[421888360,1778293842000,-249.045866,0.00016438,2]
[421888363,1778293842000,-293.409335,0.00016438,2]
[421888364,1778293842000,-249.045866,0.00016438,2]
[421888366,1778293842000,-249.045866,0.00016438,2]
[421888368,1778293842000,-249.045866,0.00016438,2]
[421888412,1778293842000,-500.0,0.0001683,2]
[421888370,1778293842000,-249.045866,0.00016438,2]
[421888371,1778293842000,-249.045866,0.00016438,2]
[421888369,1778293842000,-249.045866,0.00016438,2]
[421888373,1778293842000,-151.0,0.00016438,2]
[421888375,1778293842000,-151.0,0.00016438,2]
[421888374,1778293842000,-249.045866,0.00016438,2]
[421888372,1778293842000,-249.045866,0.00016438,2]
[421888376,1778293842000,-249.045866,0.00016438,2]
[421888379,1778293842000,-151.0,0.00016438,2]
[421888377,1778293842000,-151.0,0.00016438,2]
[421888380,1778293842000,-151.0,0.00016438,2]
[421888386,1778293842000,-854.02,0.00016555,2]
[421888413,1778293842000,-500.0,0.0001683,2]
[421888365,1778293842000,-249.045866,0.00016438,2]
[421888415,1778293842000,-500.0,0.00016873,2]
[421888451,1778293842000,-1500.0,0.00017335,2]
[421888450,1778293842000,-1500.0,0.00017335,2]
[421888452,1778293842000,-1500.0,0.00017335,2]
[421888453,1778293842000,-1500.0,0.00017335,2]
[421888448,1778293842000,-1500.0,0.00017268,2]
[421888454,1778293842000,-1500.0,0.00017335,2]
[421888455,1778293842000,-1500.0,0.00017335,2]
[421888457,1778293842000,-1500.0,0.00017335,2]
[421888456,1778293842000,-1500.0,0.00017335,2]
[421888458,1778293842000,-2303.565395,0.00017335,2]
[421888459,1778293842000,-310.93715109,0.0001736,30]
[421888460,1778293842000,-854.02,0.00017377,2]
[421888461,1778293842000,-500.0,0.00017378,2]
[421888449,1778293842000,-497.0,0.00017273,2]
[421888463,1778293842000,-1000.0,0.00017421,2]
[421888464,1778293842000,-1000.0,0.00017421,2]
[421888465,1778293842000,-1000.0,0.00017421,2]
[421888469,1778293842000,-190.65401805,0.00017481,30]
[421888466,1778293842000,-1000.0,0.00017421,2]
[421888467,1778293842000,-4610.93202238,0.00017421,2]
[421888468,1778293842000,-15704.55496461,0.00017427,14]
[421888470,1778293842000,-1602.42788632,0.00017485,2]
[421888471,1778293842000,-1000.0,0.000175,2]
[421888472,1778293842000,-290880.89722214,0.00017519,2]
[421888473,1778293842000,-451.40333634,0.00017519,2]
[421888474,1778293842000,-23149.9999996,0.00017519,2]
[421888475,1778293842000,-428.47,0.00017519,2]
[421888414,1778293842000,-500.0,0.00016873,2]
[421888462,1778293842000,-405.82,0.000174,14]
[421888447,1778293842000,-1500.0,0.00017268,2]
[421888378,1778293842000,-249.045872,0.00016438,2]
[421888445,1778293842000,-1542.24356824,0.00017268,2]
[421888416,1778293842000,-500.0,0.00016873,2]
[421888444,1778293842000,-1581.60378286,0.00017268,2]
[421888420,1778293842000,-301.7,0.000169,2]
[421888419,1778293842000,-100000.0,0.000169,2]
[421888418,1778293842000,-156.587,0.00016878,2]
[421888417,1778293842000,-500.0,0.00016873,2]
[421888422,1778293842000,-42535.3194682,0.00016918,15]
[421888424,1778293842000,-310.93715109,0.00016961,7]
[421888421,1778293842000,-290000.0,0.000169,15]
[421888427,1778293842000,-2573.21019914,0.00017,4]
[421888426,1778293842000,-181.48742535,0.00017,4]
[421888425,1778293842000,-1007.71352762,0.00017,2]
[421888423,1778293842000,-340.0,0.00016929,2]
[421888428,1778293842000,-77838.57275073,0.00017,2]
[421888430,1778293842000,-500.0,0.00017,2]
[421888437,1778293842000,-520.68133391,0.00017104,2]
[421888432,1778293842000,-1000.769073,0.00017,2]
[421888433,1778293842000,-1000.0,0.00017021,2]
[421888431,1778293842000,-500.0,0.00017,2]
[421888434,1778293842000,-300.0,0.000171,2]
[421888438,1778293842000,-500.0,0.00017104,2]
[421888439,1778293842000,-310.93715109,0.00017161,14]
[421888435,1778293842000,-394.0,0.00017102,2]
[421888429,1778293842000,-409081.27014208,0.00017,4]
[421888436,1778293842000,-854.02,0.00017103,2]
[421888440,1778293842000,-17032.34716309,0.0001718,2]
[421888441,1778293842000,-722.23,0.0001726,2]
[421888442,1778293842000,-1500.0,0.00017268,2]
[421888443,1778293842000,-1500.0,0.00017268,2]
[421888446,1778293842000,-1500.0,0.00017268,2]
[421888478,1778293843000,-398.59906457,0.00014033,2]
[421888480,1778293843000,-753.06013664,0.00014033,2]
[421888479,1778293843000,-429.42624312,0.00014033,2]
[421888477,1778293843000,-1075.08886253,0.00014033,2]
[421888521,1778293843000,-2918.55485572,0.00016555,2]
[421888522,1778293843000,-34.52162989,0.00016606,30]
[421888540,1778293843000,-451.92084606,0.00016606,30]
[421888520,1778293843000,-2343.82569314,0.00014033,2]
[421888564,1778293844000,-4980.29338595,0.00017519,2]
[421888562,1778293844000,-4260.55562012,0.00017519,2]
[421888558,1778293844000,-301.04,0.00017177,2]
[421888556,1778293844000,-486.44247595,0.00016808,30]
[421888554,1778293844000,-486.44247595,0.00016758,30]
[421888552,1778293844000,-486.44247595,0.00016707,30]
[421888550,1778293844000,-413.59219337,0.00016656,30]
[421888560,1778293844000,-28969.99366541,0.00017519,2]
[421888542,1778293844000,-72.85028258,0.00016656,30]
[421888657,1778293846000,-299.77745085,0.0001666,2]
[421888659,1778293846000,-486.44247595,0.00016859,30]
[421888660,1778293846000,-32.47256261,0.00016909,30]
[421888658,1778293846000,-67.90962466,0.0001666,2]
[421888661,1778293846000,-453.96991334,0.00016909,30]
[421888664,1778293846000,-58950.33128881,0.00017519,2]
[421888665,1778293846000,-2329.18508868,0.00017519,2]
[421888663,1778293846000,-5561.28584085,0.00017519,2]
[421888662,1778293846000,-486.44247595,0.0001696,30]
[421888666,1778293847000,-32709.71414372,0.00017519,2]
[421888789,1778295032000,-151.999581,0.00012563,2]
[421888758,1778295032000,-677.76535421,0.00011248,2]
[421888783,1778295032000,-151.999581,0.00012563,2]
[421888781,1778295032000,-151.999581,0.00012563,2]
[421888777,1778295032000,-151.999581,0.00012563,2]
[421888769,1778295032000,-35.44117501,0.00012563,2]
[421888773,1778295032000,-151.999581,0.00012563,2]
[421888787,1778295032000,-106.76673792,0.00012563,2]
[421888771,1778295032000,-116.55840599,0.00012563,2]
[421888775,1778295032000,-151.999581,0.00012563,2]
[421888779,1778295032000,-151.999581,0.00012563,2]
[421888765,1778295032000,-209.64285696,0.0001142,2]
[421888763,1778295032000,-2810.62586081,0.00011248,2]
[421888753,1778295032000,-737.6184796,0.00011136,2]
[421888755,1778295032000,-1511.60878498,0.00011248,2]
[421888767,1778295032000,-151.999581,0.00012563,2]
[421888799,1778295032000,-151.999581,0.00012563,2]
[421888785,1778295032000,-45.23284308,0.00012563,2]
[421888796,1778295032000,-113.29191739,0.00012563,2]
[421888802,1778295032000,-151.999581,0.00012563,2]
[421888824,1778295032000,-151.999581,0.00012563,2]
[421888826,1778295032000,-126.70198933,0.00012563,2]
[421888825,1778295032000,-25.29759167,0.00012563,2]
[421888827,1778295032000,-151.999581,0.00012563,2]
[421888822,1778295032000,-151.999581,0.00012563,2]
[421888823,1778295032000,-151.999581,0.00012563,2]
[421888815,1778295032000,-151.999581,0.00012563,2]
[421888821,1778295032000,-151.999581,0.00012563,2]
[421888819,1778295032000,-151.999581,0.00012563,2]
[421888818,1778295032000,-151.999581,0.00012563,2]
[421888813,1778295032000,-151.999581,0.00012563,2]
[421888810,1778295032000,-151.999581,0.00012563,2]
[421888807,1778295032000,-151.999581,0.00012563,2]
[421888793,1778295032000,-38.70766361,0.00012563,2]
[421888805,1778295032000,-151.999581,0.00012563,2]
[421888816,1778295032000,-151.999581,0.00012563,2]
[421888791,1778295032000,-151.999581,0.00012563,2]
[421888830,1778295033000,-151.999581,0.00012563,2]
[421888829,1778295033000,-151.999581,0.00012563,2]